Cogmind - Beta 10.2 @@@ ROGUE MODE // 2020.12.21 @ 11:36:47 Player: Demise Result: Destroyed by DAS Turret with DAS Cannon Performance ------------- Evolutions (1) 500 Regions Visited (5) 1000 Robots Destroyed (74) 370 Value Destroyed (1607) 1607 Prototype IDs (41) 820 Alien Tech Used (0) 0 Bonus (370) 370 TOTAL SCORE: 4667 Bonus ------- Follower Combat Kills 141 Aligned with FarCom 300 Friendly Fire -71 Cogmind --------- Core Integrity 0/400 Matter 402/600 Energy 265/280 System Corruption 0% Temperature Cool (0) Movement Treading (180) Ox1 Location -9/Exiles Parts ------- > --- POWER (1) -------- Cooled Ion Engine > --- PROPULSION (2) --- Improved Treads Improved Treads > --- UTILITY (4) ------ Improved Heat Sink High-capacity Storage Unit Medium Matter Pod High-capacity Matter Pod > --- WEAPON (2) ------- Improved EM Shotgun Improved EM Shotgun > --- INVENTORY (12) --- High-capacity Storage Unit Gravity Neutralizing Apparatus Light EM Pulse Cannon Assault Rifle Heavy Assault Rifle 8R-AWN's Boregun Plasma Cutter Scythe Peak State ------------ > --- POWER ------------ Cooled Ion Engine > --- PROPULSION ------- Improved Treads Improved Treads > --- UTILITY ---------- Improved Heat Sink High-capacity Storage Unit High-capacity Matter Pod Gravity Neutralizing Apparatus > --- WEAPON ----------- Improved EM Shotgun Missile Launcher > --- INVENTORY -------- Improved Treads High-capacity Storage Unit Medium Matter Pod Improved EM Shotgun Improved EM Shotgun Light EM Pulse Cannon Assault Rifle Heavy Assault Rifle 8R-AWN's Boregun Plasma Cutter Scythe [Rating: 27] Favorites ----------- Power Cooled Ion Engine Engine Cooled Ion Engine Propulsion Light Treads Treads Light Treads Utility High-capacity Storage Unit Device Improved Heat Sink Storage High-capacity Storage Unit Hackware Hacking Suite Protection Hardened Light Armor Plating Weapon Improved EM Shotgun Energy Gun Improved EM Shotgun Energy Cannon Beam Cannon Ballistic Gun Assault Rifle Ballistic Cannon Light Cannon Launcher Missile Launcher Special Weapon Mining Laser Slashing Weapon Scythe Special Melee Weapon Improved Datajack Build | -11 -10 -10 -9 -9 -9 ------- Run | Scr Mat Min Mat Min Exi Slots Evolved 2 | . . . 2 . . Power . | . . . . . . Propulsion . | . . . . . . Utility 2 | . . . 2 . . Weapon . | . . . . . . Parts Attached 108 | 7 23 7 34 . 37 Power 9 | 1 3 2 2 . 1 Engine 9 | 1 3 2 2 . 1 Core . | . . . . . . Reactor . | . . . . . . Propulsion 19 | 2 3 . 11 . 3 Treads 19 | 2 3 . 11 . 3 Leg . | . . . . . . Wheel . | . . . . . . Hover . | . . . . . . Flight . | . . . . . . Utility 33 | 2 4 1 7 . 19 Device 3 | . . . 1 . 2 Storage 23 | 2 4 1 3 . 13 Processor . | . . . . . . Hackware 1 | . . . 1 . . Protection 6 | . . . 2 . 4 Artifact . | . . . . . . Weapon 47 | 2 13 4 14 . 14 Energy Gun 17 | . 1 1 11 . 4 Energy Cannon 3 | . 3 . . . . Ballistic Gun 14 | 2 3 3 1 . 5 Ballistic Cannon 2 | . 2 . . . . Launcher 2 | . . . . . 2 Special Weapon 6 | . 4 . 2 . . Impact Weapon . | . . . . . . Slashing Weapon 2 | . . . . . 2 Piercing Weapon . | . . . . . . Special Melee Weapon 1 | . . . . . 1 Unidentified Prototypes 2 | . . . 2 . . Parts Lost 16 | . 1 . 3 . 12 Power 1 | . . . . . 1 Propulsion 3 | . . . . . 3 Utility 5 | . . . 1 . 4 Weapon 7 | . 1 . 2 . 4 Highest Loss Streak 6 | . 1 . 2 . 6 Average Slot Usage (%) 98 | . 99 99 99 100 93 Engine 11 | . 14 14 10 11 11 Treads 23 | . 28 28 22 22 22 Storage 30 | . 28 28 32 33 29 Hackware 1 | . . . 3 . . Protection 5 | . . . 7 11 8 Energy Gun 15 | . 1 19 20 22 8 Energy Cannon 2 | . 11 1 . . . Ballistic Gun 4 | . 11 7 . . 4 Special Melee Weapon 1 | . . . . . 7 Naked Turns . | . . . . . . Heaviest Build 156 | 14 35 57 83 83 156 Greatest Support 58 | 40 40 40 46 46 58 Greatest Overweight (x) 3 | . . 1 2 1 3 Average Overweight (x) . | . . . 1 1 1 Largest Inventory Capacity 40 | 8 14 16 24 24 40 Average Capacity 20 | 6 12 15 21 24 26 Most Carried 33 | 6 14 16 24 24 33 Average Carried 18 | 2 12 15 21 24 20 Final Capacity 24 | 8 14 16 24 24 12 Final Carried 24 | 6 14 16 24 24 8 Class Distribution -------------------- 57% | Hauler-Mutant 26% | Mutant 16% | Scavenger-Mutant Dominant Class ---------------- Mutant | -10/Materials Scavenger-Mutant | -10/Mines Hauler-Mutant | -9/Materials Hauler-Mutant | -9/Mines Hauler-Mutant | -9/Exiles Resources | -11 -10 -10 -9 -9 -9 ----------- Run | Scr Mat Min Mat Min Exi Matter Collected 2490 | 376 715 129 353 . 917 Remotely . | . . . . . . Salvage Created 2769 | 190 681 293 1362 112 131 Parts 171 | 17 52 11 77 11 3 Haulers Intercepted 6 | . 2 . 4 . . Recyclers Shooed 2 | . 1 . 1 . . Parts Field Recycled . | . . . . . . Retrieved Matter . | . . . . . . Parts Self-Destructed . | . . . . . . Prevented . | . . . . . . Kills | -11 -10 -10 -9 -9 -9 ------- Run | Scr Mat Min Mat Min Exi Combat Hostiles Destroyed 52 | . 16 8 20 3 5 Guns 38 | . 10 7 16 3 2 Cannons 7 | . 6 1 . . . AOE 6 | . . . 3 . 3 Classes Destroyed 12 | 3 6 1 2 . . Worker 5 | 2 1 . 2 . . Builder 3 | . 1 . 2 . . Tunneler 4 | 3 . . . 1 . Hauler 6 | . 2 . 4 . . Recycler 2 | 1 1 . . . . Mechanic 1 | . . . 1 . . Operator 2 | . 1 . 1 . . Watcher 6 | . 3 . 3 . . Swarmer 12 | . 9 . 1 2 . Grunt 26 | . 7 5 13 1 . Sentry 6 | . . . 6 . . Assembled 7 | . . 3 . . 4 Best Kill Streak 5 | 3 4 3 5 2 4 Combat Bots Only 4 | . 3 3 3 2 4 Max Kills in Single Turn 3 | 1 2 1 3 1 3 Gunslinging . | . . . . . . Exploded 3 | . . . 1 . 3 Melee . | . . . . . . Uniques/NPCs Destroyed 1 | . . . . . 1 8R-AWN (-9/Exiles) Combat | -11 -10 -10 -9 -9 -9 -------- Run | Scr Mat Min Mat Min Exi Damage Taken 3772 | . 606 302 917 31 1916 Core 546 | . 113 10 93 . 330 Absorbed by Shields . | . . . . . . Core Remaining (%) 75 | 100 . 50 . . . Volleys Fired 274 | 14 82 19 81 7 71 Largest 2 | 2 2 2 2 2 2 Hottest 120 | 40 100 120 100 90 90 Shots Fired 495 | 28 130 38 150 14 135 Gun 425 | 28 78 34 140 14 131 Cannon 44 | . 40 4 . . . Launcher 4 | . . . . . 4 Special 22 | . 12 . 10 . . Kinetic 255 | 28 85 9 6 . 127 Thermal 73 | . 45 10 18 . . Explosive 4 | . . . . . 4 Electromagnetic 163 | . . 19 126 14 4 Robot Hit Streak 21 | 9 11 10 21 6 19 Robot Miss Streak 5 | 1 5 2 5 3 3 Penetration Max . | . . . . . . Secondary Targets 1 | . . 1 . . . Max Gunslinging Chain 1 | . . 1 . . . Shots Hit Robots 364 | 19 75 29 121 9 111 Core Hits 141 | 7 30 13 63 6 22 Critical Hits 1 | . 1 . . . . Critical Kills . | . . . . . . Critical Parts Destroyed 1 | . 1 . . . . Melee Attacks 10 | . . . . . 10 Impact . | . . . . . . Slashing 6 | . . . . . 6 Piercing . | . . . . . . Sneak Attacks 4 | . . . . . 4 Combat Hostiles . | . . . . . . Follow-up Attacks . | . . . . . . Damage Inflicted 6091 | 209 1050 464 2473 160 1735 Guns 4698 | 209 537 407 1866 160 1519 Cannons 520 | . 465 55 . . . Explosions 804 | . . . 588 . 216 Melee . | . . . . . . Ramming 21 | . . 2 19 . . Kinetic 2403 | 209 607 65 52 . 1470 Thermal 1297 | . 443 118 736 . . Explosive 216 | . . . . . 216 Electromagnetic 2154 | . . 279 1666 160 49 Impact . | . . . . . . Slashing . | . . . . . . Piercing . | . . . . . . Highest Corruption 3 | . 3 3 . . . Average Corruption 2 | . 2 3 . . . Corruption Purged . | . . . . . . Effects 27 | . 6 21 . . . Message Errors 3 | . . 3 . . . Matter Fused 5 | . . 5 . . . Heat Flow Errors 3 | . 1 2 . . . Energy Discharges 9 | . 2 7 . . . Data Loss (minor) 6 | . 2 4 . . . Targeting Errors 1 | . 1 . . . . Overload Shots . | . . . . . . Overflow Damage 51 | . 42 . 9 . . Projectiles 42 | . 42 . . . . Explosions 9 | . . . 9 . . Melee . | . . . . . . Knockbacks 1 | . 1 . . . . Impact . | . . . . . . Kinetic 1 | . 1 . . . . Secondary . | . . . . . . Self-Inflicted Damage 301 | . . . 275 . 26 Shots 8 | . . . 7 . 1 Rammed 3 | . . 1 2 . . Targets Rammed 3 | . . 1 2 . . Kicked . | . . . . . . Crushed . | . . . . . . Highest Temperature 342 | . 342 255 174 90 300 Average Temperature 59 | . 38 68 37 31 157 Received Heat Transfer 570 | . 108 150 312 . . Effects 2 | . 1 . . . 1 Shutdowns 1 | . 1 . . . . Interference 1 | . . . . . 1 Siege Activations . | . . . . . . Robots Corrupted 1 | . . . 1 . . Combat Hostiles 1 | . . . 1 . . Parts Fried 12 | . . . 12 . . Impact Corruptions . | . . . . . . Robots Melted . | . . . . . . Combat Hostiles . | . . . . . . Parts Melted 3 | . 1 . 2 . . Heat Transferred 2045 | . 914 222 909 . . Parts Sabotaged . | . . . . . . Parts Stolen . | . . . . . . Parts Stripped . | . . . . . . Power Chain Reactions 9 | . . . 9 . . Missiles Intercepted . | . . . . . . Alert | -11 -10 -10 -9 -9 -9 ------- Run | Scr Mat Min Mat Min Exi Peak Influence 308 | 30 294 91 308 162 . Initial 97 | . 19 25 . 97 . Average 85 | 14 129 37 91 75 . Maximum Alert Level 1 | . 1 . 1 . . Low Security (%) 92 | 100 83 100 89 100 . Level 1 7 | . 16 . 10 . . Level 2 . | . . . . . . Level 3 . | . . . . . . Level 4 . | . . . . . . Level 5 . | . . . . . . High Security . | . . . . . . Max Security . | . . . . . . Squads Dispatched 11 | . 4 1 6 . . Investigation 8 | . 2 1 5 . . Extermination . | . . . . . . Reinforcement 3 | . 2 . 1 . . Assault . | . . . . . . Garrison . | . . . . . . Intercept . | . . . . . . Construction Impeded . | . . . . . . Haulers Reinforced . | . . . . . . Stealth | -11 -10 -10 -9 -9 -9 --------- Run | Scr Mat Min Mat Min Exi Distress Signals 6 | . 3 . 3 . . Communications Jammed . | . . . . . . Distress Signals . | . . . . . . Times Spotted 120 | . 27 11 43 8 31 Peak Tracking Total 10 | . 6 4 6 3 10 Tactical Retreats 10 | . . 1 3 1 5 Traps | -11 -10 -10 -9 -9 -9 ------- Run | Scr Mat Min Mat Min Exi Traps Triggered 5 | . 3 . 2 . . Indirectly . | . . . . . . Trap Hack Attempts . | . . . . . . Triggered . | . . . . . . Disarmed . | . . . . . . Reprogrammed . | . . . . . . Reused . | . . . . . . Traps Extracted . | . . . . . . Installed . | . . . . . . Triggered . | . . . . . . Exploded 2 | . . . . . 2 Machines | -11 -10 -10 -9 -9 -9 ---------- Run | Scr Mat Min Mat Min Exi Machines Disabled 15 | . 1 . 8 . 6 Max in Single Turn 4 | . 1 . 4 . 2 Machines Sabotaged . | . . . . . . Garrisons Compromised . | . . . . . . Overloaded Fab Kills . | . . . . . . Fab Network Shutdowns . | . . . . . . Hacking | -11 -10 -10 -9 -9 -9 --------- Run | Scr Mat Min Mat Min Exi Machines Accessed 29 | . 9 2 16 . 2 Terminals 16 | . 6 . 10 . . Fabricators . | . . . . . . Repair Stations 3 | . 1 . 2 . . Recycling Units 4 | . 2 . 2 . . Scanalyzers 2 | . . . 2 . . Garrison Access . | . . . . . . Total Hacks 92 | . 34 2 54 . 2 Successful 60 | . 23 2 33 . 2 Failed 31 | . 10 . 21 . . Catastrophic 3 | . 1 . 2 . . Database Lockouts 1 | . 1 . . . . Manual 56 | . 22 . 33 . 1 Terminals 59 | . 23 . 36 . . Fabricators . | . . . . . . Repair Stations 10 | . 4 . 6 . . Recycling Units 12 | . 7 . 5 . . Scanalyzers 7 | . . . 7 . . Garrison Access . | . . . . . . Terminal Hacks 19 | . 7 2 8 . 2 Record 1 | . . . . . 1 Robot Analysis 4 | . 2 . 2 . . Prototype ID Bank 1 | . . . 1 . . Open Door 2 | . . 2 . . . Terminal Index 2 | . 1 . 1 . . Unreport Threat 1 | . . . 1 . . Locate Traps 3 | . 2 . 1 . . Transport Status 1 | . . . 1 . . Hauler Manifests 1 | . 1 . . . . Zone Layout 2 | . 1 . 1 . . EX-Prototype ID Bank 1 | . . . . . 1 Fabricator Hacks . | . . . . . . Repair Station Hacks 9 | . 4 . 5 . . Scan Component 5 | . 2 . 3 . . Repair 4 | . 2 . 2 . . Recycling Unit Hacks 7 | . 4 . 3 . . Report Inventory 4 | . 2 . 2 . . Retrieve Components 3 | . 2 . 1 . . Scanalyzer 7 | . . . 7 . . Insert Component 4 | . . . 4 . . Analyze 3 | . . . 3 . . Garrison Access Hacks . | . . . . . . Unauthorized Hacks 18 | . 8 . 10 . . Terminals 15 | . 7 . 8 . . Track 3 | . 2 . 1 . . Assimilate 2 | . 1 . 1 . . Botnet 8 | . 3 . 5 . . Operators 2 | . 1 . 1 . . Fabricators . | . . . . . . Repair Stations . | . . . . . . Recycling Units 3 | . 1 . 2 . . Reject 3 | . 1 . 2 . . Scanalyzers . | . . . . . . Garrison Access . | . . . . . . Data Cores Recovered . | . . . . . . Used . | . . . . . . Hacking Detections 23 | . 9 . 14 . . Full Trace Events 8 | . 3 . 5 . . Feedback Events . | . . . . . . Feedback Blocked . | . . . . . . Robot Schematics Acquired . | . . . . . . Robots Built . | . . . . . . Matter . | . . . . . . Time . | . . . . . . Total Robot Build Rating . | . . . . . . Part Schematics Acquired 3 | . . . 3 . . Parts Built . | . . . . . . Matter . | . . . . . . Time . | . . . . . . Total Part Build Rating . | . . . . . . Parts Repaired 4 | . 2 . 2 . . Time 129 | . 52 . 77 . . Parts Recycled . | . . . . . . Recycled Matter . | . . . . . . Retrieved Matter . | . . . . . . Retrieved Components 13 | . 4 . 9 . . Parts Scanalyzed 3 | . . . 3 . . Part Schematics Acquired 3 | . . . 3 . . Parts Damaged . | . . . . . . Bothacking | -11 -10 -10 -9 -9 -9 ------------ Run | Scr Mat Min Mat Min Exi Used RIF Installer . | . . . . . . Robots Hacked 4 | . . . . . 4 Non-combat 3 | . . . . . 3 Combat 1 | . . . . . 1 Robot Hacks Applied 4 | . . . . . 4 parse_system 4 | . . . . . 4 Relay Couplers Released . | . . . . . . Robots Rewired . | . . . . . . Allies Hacked . | . . . . . . Hacks Repelled . | . . . . . . Allies | -11 -10 -10 -9 -9 -9 -------- Run | Scr Mat Min Mat Min Exi Total Allies 5 | . . 2 . 3 . Largest Group 3 | . . 2 . 3 1 Highest-Rated Group 45 | . . 45 . 40 16 Highest-Rated Ally 31 | . . 31 . 16 16 Total Orders 4 | . . . . . 4 STAY 2 | . . . . . 2 FOLLOW 2 | . . . . . 2 Ally Attacks 35 | . . 7 . 24 4 Total Damage 472 | . . 85 . 353 34 Kills 7 | . . 3 . 4 . Allies Corrupted . | . . . . . . Allies Melted . | . . . . . . Intel | -11 -10 -10 -9 -9 -9 ------- Run | Scr Mat Min Mat Min Exi Robot Analysis Total 4 | . 2 . 2 . . Derelict Logs Recovered 3 | . . 1 . 2 . Drone Launches . | . . . . . . Drone Recoveries . | . . . . . . Exploration | -11 -10 -10 -9 -9 -9 ------------- Run | Scr Mat Min Mat Min Exi Turns Passed 9083 | 150 1561 1345 3130 1094 1803 Spaces Moved 4293 | 62 754 711 1458 564 744 Core 5 | 5 . . . . . Treads 4288 | 57 754 711 1458 564 744 Legs . | . . . . . . Wheels . | . . . . . . Hover . | . . . . . . Flight . | . . . . . . Fastest Speed 50 | 50 160 160 180 180 160 Average Speed 178 | 151 160 175 181 180 195 Slowest Speed 220 | 160 160 180 200 180 220 Overloaded Moves . | . . . . . . Propulsion Burnouts . | . . . . . . Robots Hopped . | . . . . . . Cave-ins Triggered . | . . . . . . Exploration Rate (%) 78 | 6 97 98 98 98 71 Regions Visited 5 Branch Regions 3 Pre-discovered Areas 2 | . . 1 . . 1 Known Exits Taken . | . . . . . . Unknown Exits Taken 5 | 1 1 1 1 1 . Scrap Searched 4 | . . 3 . 1 . Spaces Dug 9 | . 4 . 4 . 1 Terrain Destroyed 113 | . 7 . 84 . 22 Melee 1 | . . . . . 1 Projectile 17 | . 7 . 10 . . AOE 95 | . . . 74 . 21 Terrain Rammed . | . . . . . . Walls Destroyed . | . . . . . . Machines Disabled . | . . . . . . Actions | -11 -10 -10 -9 -9 -9 --------- Run | Scr Mat Min Mat Min Exi Total 5213 | 90 969 776 1785 629 964 Wait 314 | . 72 22 147 59 14 Move 4288 | 61 753 710 1457 563 744 Hop . | . . . . . . Pick Up 98 | 7 19 7 30 . 35 Fast Attach 26 | 7 3 3 4 . 9 Attach 26 | . 1 2 8 . 15 Detach 9 | . . . 3 . 6 Swap 56 | . 19 2 22 . 13 Drop 109 | 1 20 10 31 . 47 Fire 274 | 14 82 19 81 7 71 Melee 10 | . . . . . 10 Ram . | . . . . . . Kick . | . . . . . . Crush 3 | . . 1 2 . . Escape Stasis . | . . . . . . Rewire . | . . . . . . Trap . | . . . . . . Miscellaneous . | . . . . . . Route ------- -11/Scrapyard -10/Materials (discovered 5 exits: *Mat x3 / *Min x2) -10/Mines (discovered 2 exits: *Mat x2) -9/Materials (discovered 5 exits: [*Mat x3] / [*Min x2]) -9/Mines (discovered 3 exits: [*Mat x2] / *Exi) -9/Exiles (discovered 1 exit: [*Min]) History --------- Turn | Location | Event 10 | -11/Scrapyard | Discovered new exit (range 15) 151 | -11/Scrapyard | Entered Materials 308 | -10/Materials | Build established: Mutant 585 | -10/Materials | Discovered new exit (range 13) 862 | -10/Materials | Discovered new exit (range 16) 970 | -10/Materials | Repaired Beam Cannon 997 | -10/Materials | Repaired Assault Rifle 1048 | -10/Materials | Discovered new exit (range 9) 1065 | -10/Materials | Central database locked down 1139 | -10/Materials | Build established: Scavenger-Mutant 1139 | -10/Materials | Discovered new exit (range 15) 1446 | -10/Materials | Discovered new exit (range 14) 1502 | -10/Materials | Build established: Mutant 1712 | -10/Materials | Entered Mines 1899 | -10/Mines | Assembled infested the area 2158 | -10/Mines | Discovered new exit (range 13) 2168 | -10/Mines | Learned location of Storage (-8) 2253 | -10/Mines | Met a Derelict shopkeep closing up shop 2661 | -10/Mines | Build established: Scavenger-Mutant 2707 | -10/Mines | Learned Materials garrison access intel 2788 | -10/Mines | Discovered new exit (range 10) 2867 | -10/Mines | Met a Derelict who couldn't figure out how to use a Trap Extractor 3057 | -10/Mines | Entered Materials 3057 | -9/Materials | Evolved 2 slots: Utility x2 3236 | -9/Materials | Discovered new exit (range 15) 3800 | -9/Materials | Discovered new exit (range 8) 3829 | -9/Materials | Build established: Hauler-Mutant 3866 | -9/Materials | Discovered new exit (range 16) 4341 | -9/Materials | Repaired Cld. Ion Engine 4845 | -9/Materials | Discovered new exit (range 5) 5117 | -9/Materials | Discovered new exit (range 3) 5656 | -9/Materials | Repaired Lgt. Armor Plating 6187 | -9/Materials | Entered Mines 6387 | -9/Mines | Assisted by bots powering up and referring to "LRC-V3" 6545 | -9/Mines | Discovered new exit (range 9) 6696 | -9/Mines | Discovered new exit (range 5) 6745 | -9/Mines | Learned location of 1 exit from Materials 7013 | -9/Mines | Received a Rocket Launcher from a helpful Derelict 7044 | -9/Mines | Deemed a non-threat by the Exiles lab entrance 7044 | -9/Mines | Discovered new exit (range 5) 7281 | -9/Mines | Entered Exiles 7281 | -9/Exiles | Accompanied by 1 ally 7326 | -9/Exiles | Met 8R-AWN 7374 | -9/Exiles | Met EX-HEX 7497 | -9/Exiles | Met EX-DEC 7553 | -9/Exiles | Learned location of Zion (-7) 7689 | -9/Exiles | Discovered new exit (range 10) 7914 | -9/Exiles | Met EX-BIN 7941 | -9/Exiles | Aligned with FarCom system 7943 | -9/Exiles | Given EX-Vault access code 7984 | -9/Exiles | Opened EX-Vault 8004 | -9/Exiles | Found Chronowheel 8009 | -9/Exiles | Found Modified TNC 8019 | -9/Exiles | Found Lightpack 2.0 8066 | -9/Exiles | Warned to stay clear of 0b10 Research branches 8631 | -9/Exiles | Attacked by the Exiles 8845 | -9/Exiles | Lost 6 parts (2n3u1w) 8891 | -9/Exiles | Core integrity fell below 50% 8922 | -9/Exiles | Destroyed 8R-AWN 8931 | -9/Exiles | Found 8R-AWN's Boregun 8934 | -9/Exiles | Lost 3 parts (1p1u1w) 9022 | -9/Exiles | Build established: Mutant 9065 | -9/Exiles | Lost 3 parts (1n2w) 9083 | -9/Exiles | Core integrity fell below 20% 9084 | -9/Exiles | Destroyed by DAS Turret with DAS Cannon Last Messages --------------- 08936_ Extracted 21 matter. 08940_ Extracted 80 matter. 08945_ Acquired Med. Matter Pod. 08952_ Dropped Med. Matter Pod. 08953_ Extracted 13 matter. 08960_ Acquired Hcp. Storage Unit. 08963_ Acquired Missile Launcher. 08965_ Acquired Lgt. EM Pulse Cannon. 08968_ Acquired Imp. EM Shotgun. 08979_ Acquired Imp. Heat Sink. 08980_ Dropped Med. Matter Pod. 08981_ Dropped Lrg. Matter Pod. 08984_ Acquired Gravity Neutralizing Apparatus. 09010_ Acquired 4 matter. 09022_ Acquired 12 matter. 09023_ Acquired 14 matter. 09031_ Missile Launcher destroyed. 09034_ Imp. Treads destroyed. 09034_ Imp. EM Shotgun destroyed. 09080_ DAS Turret misfires. Map ----- +----------------------------------------------------+ | ##" ""#????????????" """????????## | | #" ####???????????" ?????????# | | "## ##?????????"" ?????????#" | | ###### ##?????????"" "#????????#" | | ?????### ## #????????? ""?????????#" | | #######"=! ## #??????????" "?????????##" | | "" ! #####??????# #????????##"" | | ! # "#"####?### ###?######"" | | ## ""###X# #"###""""""" | | #####" """""" " "" | | "" ""#???#"# "" """ " | | ####"#""" #?#### " | | ??# # ###????### | | ??### # #????????### | | ????# # #??????????## | | ???? #???????????## | | ???# # ## #???????????#"# | | ??? ## #???????????## """""" | | ??# ##??# #????????????# ######" | | ??# ????? #????????????# ""##????## | | ??##????? #???????????## """##??????? | | ????????? #???????????# "" """##???????? | | ????????? ????????????# "" ""#????????? | | ????????? ????????????# " ########??# | | ????????? ????????????#" " ## #### | | ??????????????????????#""@ t """ | | ??????????????????????##"" | | ???????????????????????#""" | | ???????????????????????## | | ????????????????????????#" " | | ????????????????????????#"""" ""## | | ????????????????????????#"" ""#### | | ????????????????????????#" """"##??# | | ????????????????????????#""" """#??## | | ????????????????????????## ""##??# | | ?????????????????????????#"" """##???#" | | ?????????????????????????##""" ##????#" | | ??????????????????????????##"""" ##?????# " | | ?????????????????????????????# #??????#### | | ???????????????????????????????### ##?????????? | | ?????????????????????????????????## #??????????? | | ??????????????????????????????????? ???????????? | | ?????????????????????????????????????????????????? | | ?????????????????????????????????????????????????? | | ?????????????????????????????????????????????????? | | ?????????????????????????????????????????????????? | | ?????????????????????????????????????????????????? | | ?????????????????????????????????????????????????? | | ?????????????????????????????????????????????????? | | ?????????????????????????????????????????????????? | +----------------------------------------------------+ Best States ------------- Heat Dissipation 42 Energy Generation 18 Energy Capacity 280 Matter Stores 493 Matter Capacity 750 Sight Range 16 Terrain Scan Range 18 Terrain Scan Density 10 Additional Mass Support 12 Armor Coverage 450 Evasion (%) 40 Recoil Reduction 2 Offensive Hacking 10 Item Schematics ----------------- Hcp. Matter Pod | -9/Materials | Scanalyzed Adv. Sensor Array | -9/Materials | Scanalyzed Imp. Flight Unit | -9/Materials | Scanalyzed Robot Schematics ------------------ None Fabricated ------------ Nothing Alien Tech Used ----------------- None Achievements -------------- None Challenges ------------ None Game ------ Seed ThiefBladeBooster Manual? 0 Play Time 01:08:42 Cumulative 144.9 hours Start 2020.12.21 @ 10:31:05 End 2020.12.21 @ 11:36:47 Sessions 1 Manual Loads 0 Difficulty Rogue Special Mode None Game No. 129 Rogue 129 Adventurer 0 Explorer 0 Win Type - Total 0 Types 0/0/0/0/0/0/0/0/0 Lore% 54 Gallery% 65 Achievement% 54 Wizard Run 0 Options --------- ASCII 0 Keyboard 1 Movement Numpad Keybinds 0 Fullscreen 1 Font 12/Terminus Map View 83x54 Tactical HUD 1 Map Filters NONE Filters NONE Steam 1 RUN: 48753da6-1674-49d5-a058-108aeead16e6